bitfinex-derivatives/quotes_BTCF0:USTF0_20241203
["timestamp","ask_amount","ask_price","bid_price","bid_amount"]
[1733247189154,4e-05,95217.0,95213.0,0.00109866]
[1733247189349,0.413293,95214.0,95213.0,0.00109866]
[1733247189655,0.3608,95214.0,95213.0,0.05459166]
[1733247189861,0.413293,95214.0,95213.0,0.00209866]
[1733247190156,0.052496,95209.0,95208.0,0.00157516]
[1733247190456,0.052496,95209.0,95184.0,1.5105]
[1733247190457,0.052503,95195.0,95194.0,0.052504]
[1733247190653,0.413303,95195.0,95194.0,0.052504]
[1733247190856,0.413343,95195.0,95194.0,0.052504]
[1733247191355,0.36084,95195.0,95194.0,0.052504]
[1733247192469,0.36184,95195.0,95194.0,0.058504]
[1733247192853,0.36284,95195.0,95194.0,0.067504]
[1733247193352,0.36284,95195.0,95194.0,0.015]
[1733247193554,0.41545972,95195.0,95194.0,0.015]
[1733247193749,0.41545972,95195.0,95182.0,9.828e-05]
[1733247193750,0.05251,95183.0,95182.0,9.828e-05]
[1733247193956,0.41331,95183.0,95182.0,0.05260928]
[1733247194154,0.41335,95183.0,95182.0,0.05260928]
[1733247194357,0.36084,95183.0,95182.0,0.05260928]
[1733247194961,4e-05,95183.0,95182.0,0.05260928]
[1733247195657,4e-05,95183.0,95182.0,1.55560928]
[1733247195861,4e-05,95183.0,95182.0,1.55960928]
[1733247196568,4e-05,95183.0,95182.0,1.55860928]
[1733247197362,4e-05,95183.0,95182.0,1.55660928]
[1733247197966,4e-05,95183.0,95182.0,1.91740928]
[1733247198269,4e-05,95183.0,95182.0,2.21740928]
[1733247198568,4e-05,95183.0,95182.0,1.91740928]
[1733247198771,4e-05,95183.0,95182.0,2.06828928]
[1733247198957,4e-05,95183.0,95182.0,2.07128928]
[1733247200668,0.00011672,95195.0,95183.0,0.05251]
[1733247200867,0.00011672,95195.0,95194.0,0.413304]
[1733247201063,0.00011672,95195.0,95194.0,0.567184]
[1733247201665,0.00011672,95195.0,95194.0,2.067184]
[1733247201867,0.3608,95215.0,95194.0,2.367184]
[1733247202069,0.3608,95215.0,95214.0,0.052493]
[1733247202373,0.3608,95215.0,95214.0,0.052533]
[1733247202763,0.0325,95228.0,95216.0,0.052492]
[1733247203068,8.53e-05,95218.0,95216.0,0.052532]
[1733247204363,0.00104,95217.0,95216.0,0.052532]
[1733247204876,0.414331,95217.0,95216.0,4e-05]
[1733247205071,0.446431,95217.0,95216.0,4e-05]
[1733247205372,0.447431,95217.0,95216.0,4e-05]
[1733247206070,0.49457343,95217.0,95199.0,0.02968613]
[1733247206273,0.3608,95202.0,95199.0,0.08218713]
[1733247206473,4e-05,95200.0,95199.0,0.02968613]
[1733247206776,4e-05,95200.0,95182.0,9.828e-05]
[1733247206965,0.3608,95189.0,95182.0,9.828e-05]
[1733247207669,0.05251,95183.0,95182.0,9.828e-05]
[1733247207975,0.05251,95183.0,95182.0,0.00309828]
[1733247208275,0.052513,95177.0,95176.0,0.00157568]
[1733247208465,0.052518,95169.0,95168.0,0.03101925]
[1733247208666,0.052518,95169.0,95158.0,0.02101121]
[1733247208667,0.052521,95164.0,95163.0,0.05252]
[1733247209078,0.052521,95164.0,95158.0,0.02101121]
[1733247209079,0.052523,95159.0,95158.0,0.07353221]
[1733247209372,0.36084,95159.0,95158.0,0.07353221]
[1733247209576,4e-05,95159.0,95158.0,0.07353221]
[1733247210071,0.36084,95159.0,95158.0,0.07353221]
[1733247210472,0.36184,95159.0,95158.0,0.07353221]
[1733247211370,0.36284,95159.0,95158.0,0.07953221]
[1733247211578,0.36293356,95159.0,95158.0,0.02701121]
[1733247211770,0.36293356,95159.0,95158.0,0.006]
[1733247211771,0.41545656,95159.0,95158.0,0.006]
[1733247211972,0.36293356,95159.0,95158.0,0.006]
[1733247212278,0.36293356,95159.0,95158.0,0.058524]
[1733247212476,0.00213356,95159.0,95158.0,0.058524]
[1733247212679,0.00213356,95159.0,95158.0,0.419324]
[1733247212872,0.00113356,95159.0,95158.0,1.919324]
[1733247213074,0.00209356,95159.0,95158.0,2.219324]
[1733247213477,0.00209356,95159.0,95158.0,1.919324]
[1733247215194,0.00209356,95159.0,95158.0,1.95039133]
[1733247215396,0.00209356,95159.0,95158.0,1.74351133]
[1733247219892,4e-05,95164.0,95163.0,0.052521]
[1733247220295,4e-05,95164.0,95163.0,0.052561]
[1733247220792,0.36089002,95183.0,95182.0,0.052511]
[1733247221688,0.36089002,95183.0,95182.0,0.052591]
[1733247221885,0.36089002,95183.0,95182.0,8e-05]
[1733247222091,0.41340002,95183.0,95182.0,0.00208]
[1733247222291,0.052511,95182.0,95159.0,0.052523]
[1733247222594,4e-05,95160.0,95159.0,0.052523]
[1733247223592,4e-05,95160.0,95159.0,0.054523]
[1733247223792,4e-05,95160.0,95159.0,0.002]
[1733247224100,0.052563,95160.0,95159.0,0.002]
[1733247224291,0.052563,95160.0,95153.0,0.02114654]
[1733247224292,0.052525,95157.0,95153.0,0.02114654]
[1733247224488,0.3608,95154.0,95153.0,0.02114654]
[1733247224688,0.3608,95154.0,95153.0,0.07367354]
[1733247224689,0.36084,95154.0,95153.0,0.07367354]
[1733247225396,4e-05,95154.0,95153.0,0.07367354]
[1733247225709,0.00104,95154.0,95153.0,1.57867354]
[1733247226594,0.00104,95154.0,95153.0,1.57967354]
[1733247227307,0.00104,95154.0,95153.0,1.57867354]
[1733247227597,0.00104,95154.0,95153.0,1.57967354]
[1733247227598,0.00204,95154.0,95153.0,1.57967354]
[1733247231705,1e-06,95154.0,95153.0,1.97707354]
[1733247231907,9.002e-05,95183.0,95153.0,2.37846654]
[1733247232108,9.002e-05,95183.0,95182.0,0.052511]
[1733247232406,9.002e-05,95183.0,95182.0,0.206471]
[1733247232611,9.002e-05,95183.0,95182.0,1.706471]
[1733247233202,2e-08,95183.0,95182.0,1.706471]
[1733247233610,2e-08,95183.0,95182.0,1.552551]
[1733247233809,2e-08,95183.0,95182.0,1.706471]
[1733247233810,0.00100002,95183.0,95182.0,1.706471]
[1733247234111,0.00100002,95183.0,95182.0,1.58475053]
[1733247234414,0.00100002,95183.0,95182.0,1.73867053]
[1733247235512,0.00100002,95183.0,95182.0,1.76581111]
[1733247235711,2e-08,95183.0,95182.0,1.76681111]
[1733247239412,0.21940636,95213.0,95182.0,2.01430011]
[1733247239620,0.00056001,95218.0,95216.0,0.052492]
[1733247239813,0.21940636,95219.0,95216.0,0.052492]
[1733247240003,0.21940636,95223.0,95216.0,0.052532]
[1733247240609,0.25130636,95227.0,95216.0,0.052532]
[1733247241121,0.00604,95217.0,95216.0,0.053532]
[1733247241310,0.00604,95217.0,95216.0,0.41445458]
[1733247241525,0.21949419,95237.0,95236.0,0.052481]
[1733247241721,0.0328,95246.0,95239.0,0.05248]
[1733247242015,0.0328,95246.0,95245.0,0.052476]
[1733247242218,0.0328,95246.0,95245.0,0.052556]
[1733247242407,0.00157595,95248.0,95247.0,0.052475]
[1733247242816,0.00157595,95248.0,95247.0,0.052555]
[1733247243214,0.3608,95264.0,95263.0,0.052466]
[1733247243620,0.3608,95264.0,95263.0,0.052546]
[1733247244011,0.3608,95273.0,95272.0,0.052461]
[1733247244310,0.0323,95282.0,95275.0,0.05246]
[1733247244518,0.0323,95282.0,95272.0,8e-05]
[1733247244718,0.084756,95282.0,95281.0,8e-05]
[1733247244919,0.445556,95282.0,95281.0,8e-05]
[1733247246018,0.454556,95282.0,95281.0,8e-05]
[1733247246225,0.4021,95282.0,95281.0,0.052536]
[1733247246723,0.3698,95282.0,95281.0,0.052536]
[1733247247109,0.3788,95282.0,95281.0,0.053536]
[1733247248323,0.3788,95282.0,95281.0,0.00108]
[1733247250819,0.36303545,95282.0,95281.0,0.00108]
[1733247252012,0.009,95282.0,95281.0,0.00108]
[1733247252311,0.01,95282.0,95281.0,0.05361905]
[1733247252927,0.01,95282.0,95281.0,0.0746187]
[1733247253616,0.004,95282.0,95281.0,0.0736187]
[1733247253811,0.004,95282.0,95281.0,0.10506371]
[1733247253812,0.01,95282.0,95281.0,0.10506371]
[1733247254220,0.004,95282.0,95281.0,0.05160671]
[1733247254424,0.01,95282.0,95281.0,0.05260671]
[1733247254623,0.3708,95282.0,95281.0,0.05260671]
[1733247255018,0.3708,95282.0,95281.0,0.1820417]
[1733247255631,0.3708,95282.0,95281.0,0.0121617]
[1733247255812,0.3708,95282.0,95281.0,0.0646187]
[1733247256123,0.01,95282.0,95281.0,0.0646187]
[1733247256423,0.01,95282.0,95281.0,0.4254187]
[1733247256614,0.01,95282.0,95281.0,0.2246055]
[1733247256926,0.01,95282.0,95281.0,0.0122685]
[1733247258321,0.062456,95282.0,95281.0,0.0122685]
[1733247258520,0.062456,95282.0,95281.0,0.0011068]
[1733247258829,0.062456,95282.0,95264.0,0.08225848]
[1733247259022,0.3608,95271.0,95253.0,0.15988]
[1733247259227,0.3608,95273.0,95253.0,0.212352]
[1733247259228,0.3608,95254.0,95253.0,0.212352]
[1733247259427,0.052471,95257.0,95253.0,0.212352]
[1733247259624,0.413268,95262.0,95253.0,0.15988]
[1733247259923,0.413268,95262.0,95260.0,0.052468]
[1733247260311,0.052468,95261.0,95256.0,0.052511]
[1733247260517,0.3608,95262.0,95256.0,4e-05]
[1733247260725,0.00104,95257.0,95256.0,0.052511]
[1733247261226,4e-05,95257.0,95256.0,0.052511]
[1733247261815,0.05251,95257.0,95256.0,4e-05]
[1733247262015,0.052476,95247.0,95237.0,0.0105]
[1733247262232,0.052481,95237.0,95218.0,0.0105]
[1733247262523,0.3608,95222.0,95221.0,0.05249]
[1733247262718,0.3608,95222.0,95221.0,0.07349332]
[1733247263227,0.36089532,95222.0,95221.0,0.07349332]
[1733247264023,0.36189532,95222.0,95221.0,0.07349332]
[1733247264423,0.36189532,95222.0,95221.0,0.02100332]
[1733247264634,0.41438432,95222.0,95221.0,0.02100332]
[1733247265014,0.41538432,95222.0,95221.0,0.02100332]
[1733247265220,0.052491,95219.0,95218.0,8.535e-05]
[1733247265424,0.413291,95219.0,95218.0,8.535e-05]
[1733247266121,0.572171,95219.0,95218.0,8.535e-05]
[1733247266532,0.413291,95219.0,95218.0,8.535e-05]
[1733247267318,0.3608,95219.0,95218.0,8.535e-05]
[1733247268323,0.3618,95219.0,95218.0,8.535e-05]
[1733247269128,0.3618,95219.0,95218.0,0.05257735]
[1733247270534,0.3628,95219.0,95218.0,0.05257735]
[1733247271626,0.3628,95219.0,95218.0,8.535e-05]
[1733247271627,0.415291,95219.0,95218.0,8.535e-05]
[1733247272931,0.415291,95219.0,95218.0,0.05257735]
[1733247274536,0.415291,95219.0,95218.0,8.535e-05]
[1733247275038,0.415291,95219.0,95218.0,0.05257735]
[1733247275228,0.574211,95219.0,95218.0,0.05257735]
[1733247279231,0.57414586,95219.0,95218.0,0.05257735]
[1733247279429,0.36273486,95219.0,95218.0,0.05257735]
[1733247279938,0.41522686,95219.0,95218.0,8.535e-05]
[1733247280539,0.41522686,95219.0,95218.0,0.05257735]
[1733247281127,0.41522686,95219.0,95218.0,8.535e-05]
[1733247281434,0.41522686,95219.0,95218.0,0.05257735]
[1733247281935,0.41522686,95219.0,95218.0,8.535e-05]
[1733247282136,0.41522686,95219.0,95218.0,0.05257735]
[1733247283339,0.41522686,95219.0,95218.0,8.535e-05]
[1733247283930,0.052494,95214.0,95213.0,0.0105]
[1733247284128,0.052494,95214.0,95180.0,0.5199992]
[1733247284129,0.1591992,95210.0,95190.0,0.052507]
[1733247284340,0.774109,95191.0,95190.0,0.052507]
[1733247285741,0.774109,95191.0,95185.0,0.05251]
[1733247285742,0.05251,95186.0,95185.0,0.05251]
[1733247286037,0.77470701,95191.0,95190.0,0.052508]
[1733247286537,0.7216,95191.0,95190.0,0.052548]
[1733247286930,0.7226,95191.0,95190.0,0.061548]
[1733247287328,0.7226,95191.0,95190.0,0.064548]
[1733247287535,0.7236,95191.0,95190.0,0.064548]
[1733247290439,0.7236,95191.0,95190.0,0.09491003]
[1733247290947,0.7236,95191.0,95190.0,0.04240203]
[1733247291153,0.776107,95191.0,95190.0,0.01204]
[1733247293341,0.7236,95191.0,95190.0,0.064548]
[1733247296048,0.7236,95191.0,95190.0,0.221908]
[1733247296347,0.7236,95191.0,95190.0,1.721908]
[1733247297543,0.776107,95191.0,95190.0,0.01204]
[1733247297737,0.7236,95191.0,95190.0,0.064548]
[1733247299545,0.7236,95191.0,95190.0,1.75251223]
[1733247299940,0.7236,95191.0,95190.0,1.564548]
[1733247300140,0.71301465,95191.0,95190.0,1.75251223]
[1733247300343,0.71301465,95191.0,95190.0,1.564548]
[1733247302349,0.55539462,95191.0,95190.0,1.564548]
[1733247303253,0.55539462,95191.0,95190.0,0.01204]
[1733247303452,0.60790162,95191.0,95190.0,0.01204]
[1733247304951,0.05251,95185.0,95184.0,8.852e-05]
[1733247306143,0.05351,95185.0,95184.0,0.00308852]
[1733247306443,0.05451,95185.0,95184.0,0.00708852]
[1733247307452,0.21091,95185.0,95184.0,8.852e-05]
[1733247309451,0.1584,95185.0,95169.0,0.0210153]
[1733247309646,0.1584,95185.0,95169.0,0.0735343]
[1733247309647,0.7216,95170.0,95169.0,0.0735343]
[1733247309852,0.72168001,95170.0,95169.0,0.0735343]
[1733247311151,0.72268001,95170.0,95169.0,0.0735343]
[1733247311651,0.72268001,95170.0,95163.0,0.00011438]
[1733247311951,0.05260201,95164.0,95163.0,0.00011438]
[1733247312149,0.05260201,95164.0,95163.0,0.05263638]
[1733247312750,0.18857384,95164.0,95163.0,0.05663638]
[1733247313053,0.00108001,95164.0,95163.0,0.05763638]
[1733247313552,0.00208001,95164.0,95163.0,0.05763638]
[1733247314052,0.05705105,95166.0,95163.0,0.00511438]
[1733247314250,7.845e-05,95169.0,95168.0,0.05252]
[1733247314456,0.24929665,95192.0,95168.0,0.05252]
[1733247314457,0.20429383,95180.0,95175.0,0.052516]
[1733247314644,0.18849383,95180.0,95179.0,0.052514]
[1733247314841,0.3608,95184.0,95183.0,0.052511]
[1733247315247,0.3608,95184.0,95183.0,0.052551]
[1733247315754,9.192e-05,95190.0,95189.0,0.052508]
[1733247316053,9.192e-05,95190.0,95189.0,0.209948]
[1733247316845,9.192e-05,95190.0,95189.0,0.052548]
[1733247317042,0.41839892,95190.0,95189.0,4e-05]
[1733247317251,0.51101483,95190.0,95189.0,4e-05]
[1733247317448,0.36589192,95190.0,95179.0,4e-05]
[1733247317648,0.3608,95180.0,95179.0,4e-05]
[1733247317856,0.36084,95180.0,95179.0,4e-05]
[1733247318151,0.413353,95180.0,95179.0,4e-05]
[1733247318651,0.052522,95164.0,95163.0,0.00011438]
[1733247318952,0.774202,95164.0,95163.0,0.00011438]
[1733247319166,0.774202,95164.0,95136.0,0.1574]
[1733247319167,0.72168,95164.0,95136.0,0.1574]
[1733247319452,0.72168,95164.0,95139.0,0.052536]
[1733247319453,0.3608,95140.0,95139.0,0.052536]
[1733247319950,0.3608,95142.0,95141.0,0.052535]
[1733247320356,0.3608,95142.0,95141.0,0.052575]
[1733247322255,0.3618,95142.0,95141.0,0.056575]
[1733247322458,0.3628,95142.0,95141.0,0.058575]
[1733247323062,0.415334,95142.0,95141.0,0.00604]
[1733247323259,0.3628,95142.0,95141.0,0.00604]
[1733247323558,0.3628,95142.0,95141.0,0.058575]
[1733247324549,0.002,95142.0,95141.0,0.212735]
[1733247324953,0.002,95142.0,95141.0,1.712735]
[1733247326356,0.0105,95158.0,95156.0,0.052526]
[1733247326562,0.0105,95158.0,95148.0,0.05253]
[1733247326563,0.3608,95160.0,95154.0,0.15416]
[1733247326758,0.3608,95160.0,95157.0,0.052526]
[1733247327059,0.3608,95160.0,95159.0,4e-05]
[1733247327453,0.3608,95160.0,95159.0,0.052565]
[1733247329156,0.3618,95160.0,95159.0,0.052565]
[1733247329352,0.3628,95160.0,95159.0,0.206725]
[1733247329860,0.3628,95160.0,95159.0,1.552565]
[1733247331050,0.3628,95160.0,95159.0,1.57358911]
[1733247331264,0.3618,95160.0,95159.0,1.57358911]
[1733247331556,0.3618,95160.0,95159.0,1.57558911]
[1733247332153,0.3618,95160.0,95159.0,1.57358911]
[1733247332354,0.3618,95160.0,95159.0,1.57758911]
[1733247332355,0.3608,95160.0,95159.0,1.57758911]
[1733247332658,0.0158,95168.0,95159.0,1.52506411]
[1733247332659,0.18824176,95161.0,95159.0,1.52506411]
[1733247332970,0.18824149,95167.0,95160.0,0.413364]
[1733247333154,0.18824149,95168.0,95167.0,0.05252]
[1733247333359,0.18824149,95168.0,95167.0,0.20668]
[1733247333560,0.18824149,95169.0,95168.0,0.05252]
[1733247333759,0.18824149,95169.0,95168.0,0.11532]
[1733247333954,0.0158,95182.0,95174.0,0.052516]
[1733247333955,0.18829713,95175.0,95174.0,0.052516]
[1733247334166,0.21821559,95187.0,95174.0,0.052516]
[1733247334167,0.0158,95189.0,95187.0,0.052509]
[1733247334463,0.21830751,95190.0,95187.0,0.052549]
[1733247334665,9.192e-05,95190.0,95187.0,0.052549]
[1733247335764,9.192e-05,95190.0,95187.0,0.08246862]
[1733247336066,0.3618,95188.0,95187.0,0.08246862]
[1733247336462,0.3638,95188.0,95187.0,0.08246862]
[1733247336958,0.416309,95188.0,95187.0,4e-05]
[1733247337356,0.3638,95188.0,95187.0,0.052549]
[1733247338073,0.3638,95188.0,95187.0,4e-05]
[1733247338564,0.51899098,95188.0,95187.0,4e-05]
[1733247338760,0.51899163,95188.0,95187.0,4e-05]
[1733247338959,0.416309,95188.0,95187.0,4e-05]
[1733247339367,0.052513,95180.0,95166.0,0.15412]
[1733247339663,0.00011999,95167.0,95166.0,0.206641]
[1733247339853,0.00011999,95167.0,95166.0,0.22766052]
[1733247340463,0.00011999,95167.0,95166.0,0.07354052]
[1733247340657,0.00011999,95167.0,95166.0,0.23266052]
[1733247340861,0.00011999,95167.0,95166.0,0.26230686]
[1733247341566,0.00011999,95167.0,95166.0,0.26530686]
[1733247342070,0.00111999,95167.0,95166.0,0.26530686]
[1733247342270,0.00211999,95167.0,95166.0,0.26530686]
[1733247342666,0.0158,95178.0,95166.0,0.56530686]
[1733247342870,9.192e-05,95190.0,95166.0,0.56530686]
[1733247342871,0.0158,95183.0,95182.0,0.052512]
[1733247343171,9.192e-05,95190.0,95187.0,0.052509]
[1733247343471,9.192e-05,95190.0,95187.0,0.052549]
[1733247344863,9.192e-05,95190.0,95187.0,4e-05]
[1733247345259,0.3618,95188.0,95187.0,4e-05]
[1733247345469,0.3638,95188.0,95187.0,4e-05]
[1733247345971,0.3608,95188.0,95187.0,4e-05]
[1733247346161,0.3648,95188.0,95187.0,4e-05]
[1733247346565,0.3648,95188.0,95187.0,0.052549]
[1733247347065,0.3678,95188.0,95187.0,0.053549]
[1733247347864,0.3668,95188.0,95187.0,0.053549]
[1733247348070,0.3698,95188.0,95187.0,0.053549]
[1733247348468,0.3698,95188.0,95187.0,1.553549]
[1733247348668,0.3668,95188.0,95187.0,1.552549]
[1733247349169,0.3698,95188.0,95187.0,1.553549]
[1733247349778,0.3678,95188.0,95187.0,1.553549]
[1733247350268,0.3638,95188.0,95187.0,1.552549]
[1733247351175,0.3638,95188.0,95187.0,1.50004]
[1733247351376,0.052517,95172.0,95164.0,0.052521]
[1733247351675,0.3608,95166.0,95165.0,0.052521]
[1733247352967,0.3608,95166.0,95165.0,0.055521]
[1733247353169,0.3608,95166.0,95165.0,0.003]
[1733247353369,0.413321,95166.0,95165.0,0.003]
[1733247353789,0.413321,95166.0,95165.0,0.03286708]
[1733247353970,0.3608,95166.0,95165.0,0.055521]
[1733247354170,0.413321,95166.0,95165.0,0.055521]
[1733247354368,0.3608,95166.0,95159.0,0.02102555]
[1733247354673,0.052525,95159.0,95156.0,0.052526]
[1733247354865,0.3608,95157.0,95156.0,0.052526]
[1733247355070,0.36088001,95157.0,95156.0,0.052526]
[1733247355865,8.001e-05,95157.0,95156.0,0.052526]
[1733247356066,0.001,95166.0,95156.0,0.41854874]
[1733247356270,0.0158,95171.0,95170.0,0.052518]
[1733247356571,0.0158,95182.0,95181.0,0.052512]
[1733247356773,0.0332,95187.0,95175.0,0.3608]
[1733247356981,0.0332,95187.0,95186.0,0.05251]
[1733247357176,0.0332,95187.0,95186.0,0.05255]
[1733247357665,0.0332,95187.0,95186.0,1.55255]
[1733247358277,0.0412,95187.0,95186.0,1.55255]
[1733247358669,0.0442,95187.0,95186.0,1.55255]
[1733247359074,0.0362,95187.0,95186.0,1.55255]
[1733247359275,0.0382,95187.0,95186.0,1.55255]
[1733247359980,0.090709,95187.0,95186.0,4e-05]
[1733247360370,0.0382,95187.0,95186.0,4e-05]
[1733247360573,0.0382,95187.0,95186.0,0.05255]
[1733247360772,0.005,95187.0,95186.0,0.05255]
[1733247361584,0.0328,95197.0,95186.0,4e-05]
[1733247361777,0.0328,95197.0,95189.0,0.052508]
[1733247361983,0.0328,95197.0,95189.0,0.052548]
[1733247362180,0.0328,95197.0,95189.0,4e-05]
[1733247362379,0.41339892,95190.0,95189.0,4e-05]
[1733247362582,0.91254836,95190.0,95189.0,4e-05]
[1733247362781,0.52951332,95190.0,95189.0,4e-05]
[1733247362987,0.6314836,95190.0,95189.0,4e-05]
[1733247363194,0.91434657,95190.0,95189.0,4e-05]
[1733247363491,0.6314836,95190.0,95189.0,4e-05]
[1733247363678,0.5789766,95190.0,95189.0,4e-05]
[1733247363877,0.5839766,95190.0,95189.0,0.052548]
[1733247364077,0.89830693,95190.0,95189.0,0.052548]
[1733247364288,0.5839766,95190.0,95189.0,0.052548]
[1733247364488,0.4708622,95190.0,95189.0,0.052548]
[1733247364878,0.00809192,95190.0,95189.0,0.082671]
[1733247365282,0.00309192,95190.0,95189.0,0.082671]
[1733247365581,0.00809192,95190.0,95189.0,0.082671]
[1733247366784,0.2199901,95193.0,95192.0,0.052506]
[1733247367090,0.2199901,95200.0,95199.0,0.052502]
[1733247367392,0.0026,95207.0,95199.0,0.052502]
[1733247367393,0.2199901,95202.0,95199.0,0.15532]
[1733247367588,0.2199901,95207.0,95206.0,0.052499]
[1733247367791,0.25142199,95209.0,95206.0,2.25825419]
[1733247367989,0.21981142,95214.0,95213.0,0.052495]
[1733247368190,0.21981142,95219.0,95214.0,0.052494]
[1733247368384,0.3608,95221.0,95220.0,0.052491]
[1733247369392,0.3608,95221.0,95220.0,0.052531]
[1733247369895,0.3608,95221.0,95220.0,4e-05]
[1733247370685,0.3628,95221.0,95206.0,0.75929419]
[1733247370886,0.3628,95221.0,95206.0,0.00013419]
[1733247370887,0.413298,95207.0,95206.0,0.00013419]
[1733247371094,0.3608,95207.0,95206.0,0.00013419]
[1733247371287,0.3608,95213.0,95212.0,0.052495]
[1733247371490,0.3658,95221.0,95220.0,0.052491]
[1733247371686,0.3638,95221.0,95220.0,0.052491]
[1733247371998,0.3608,95221.0,95220.0,0.052491]
[1733247372790,0.3608,95221.0,95217.0,0.15532]
[1733247372999,0.052494,95215.0,95212.0,4e-05]
[1733247373193,0.3608,95213.0,95212.0,4e-05]
[1733247373894,0.413295,95213.0,95212.0,4e-05]
[1733247374094,0.4242,95213.0,95204.0,0.02101223]
[1733247374297,0.3608,95205.0,95204.0,0.07351223]
[1733247374497,0.36088,95205.0,95204.0,0.07351223]
[1733247374796,0.36088,95205.0,95193.0,0.15528]
[1733247375101,8e-05,95194.0,95193.0,0.052506]
[1733247376099,8e-05,95194.0,95192.0,8e-05]
[1733247376311,0.3608,95193.0,95186.0,4e-05]
[1733247376511,0.413309,95187.0,95186.0,4e-05]
[1733247376714,0.413389,95187.0,95186.0,4e-05]
[1733247376913,0.36088,95187.0,95186.0,0.05255]
[1733247377405,0.36088,95187.0,95186.0,0.05355]
[1733247377606,0.36088,95187.0,95186.0,0.08395389]
[1733247377808,0.36088,95187.0,95186.0,1.58395389]
[1733247378107,0.00808,95187.0,95186.0,1.58295389]
[1733247378506,0.00275148,95187.0,95186.0,1.58295389]
[1733247378811,0.0158,95197.0,95186.0,1.58295389]
[1733247378812,0.0158,95197.0,95196.0,0.052504]
[1733247379015,0.3608,95203.0,95186.0,1.53244389]
[1733247379314,0.413349,95187.0,95186.0,0.00204]
[1733247379721,0.446349,95187.0,95186.0,0.00204]
[1733247379923,0.477949,95187.0,95186.0,0.00104]
[1733247380108,0.477949,95187.0,95186.0,0.00204]
[1733247380313,0.478949,95187.0,95186.0,0.00604]
[1733247380519,0.478949,95187.0,95186.0,0.00504]
[1733247380816,0.478949,95187.0,95186.0,0.00604]
[1733247381120,0.477949,95187.0,95186.0,0.00204]
[1733247381520,0.42544,95187.0,95186.0,0.00204]
[1733247381914,0.42544,95187.0,95186.0,0.05455]
[1733247382314,0.42544,95187.0,95186.0,0.00204]
[1733247382515,0.477949,95187.0,95186.0,0.00204]
[1733247383017,0.42544,95187.0,95186.0,0.00204]
[1733247383214,0.42544,95187.0,95186.0,0.05455]
[1733247384117,0.42544,95187.0,95186.0,0.00104]
[1733247384118,0.477949,95187.0,95186.0,0.00104]
[1733247384317,0.482949,95187.0,95186.0,0.00104]
[1733247384627,0.484949,95187.0,95186.0,0.05255]
[1733247385315,0.43244,95187.0,95186.0,0.05255]
[1733247388819,0.40084,95187.0,95186.0,0.05255]
[1733247389023,0.36784,95187.0,95186.0,0.05255]
[1733247389719,0.36784,95187.0,95186.0,0.0830889]
[1733247389916,0.36684,95187.0,95186.0,0.0830889]
[1733247390129,0.36384,95187.0,95186.0,0.05255]
[1733247390629,0.36384,95187.0,95186.0,4e-05]
[1733247390919,0.36184,95187.0,95186.0,0.05255]
[1733247391115,0.36384,95187.0,95186.0,0.05255]
[1733247392917,0.36184,95187.0,95186.0,0.05255]
[1733247393118,0.36484,95187.0,95186.0,0.05255]
[1733247394926,0.36484,95187.0,95186.0,4e-05]
[1733247395118,0.417349,95187.0,95186.0,4e-05]
[1733247395430,0.417349,95187.0,95186.0,0.05255]
[1733247395431,0.36484,95187.0,95186.0,0.05255]
[1733247396221,0.00404,95187.0,95186.0,0.05255]
[1733247396421,0.0158,95197.0,95196.0,0.052504]
[1733247396623,0.0158,95207.0,95196.0,0.51664]
[1733247396824,0.3608,95214.0,95206.0,0.052499]
[1733247397024,0.3608,95214.0,95213.0,0.052495]
[1733247397225,0.3608,95214.0,95213.0,0.05253501]
[1733247397829,0.3608,95214.0,95213.0,1.55253501]
[1733247398228,0.00157632,95219.0,95213.0,1.50004001]
[1733247398428,0.00157632,95219.0,95217.0,0.052493]
[1733247398628,0.00157632,95219.0,95217.0,0.05253301]
[1733247399019,0.00157632,95219.0,95217.0,0.20837301]
[1733247399935,0.00304,95218.0,95217.0,0.20837301]
[1733247400428,0.00204,95218.0,95217.0,0.20837301]
[1733247400622,0.00104,95218.0,95217.0,0.20837301]
[1733247404727,0.00104,95218.0,95217.0,1.70837301]
[1733247407320,0.0158,95225.0,95224.0,0.052489]
[1733247407532,0.01061126,95226.0,95225.0,0.052488]
[1733247407533,0.00011126,95226.0,95225.0,0.052488]
[1733247408028,0.00011126,95226.0,95225.0,0.05256801]
[1733247409628,0.00511126,95226.0,95225.0,0.05256801]
[1733247409829,0.00811126,95226.0,95225.0,0.05256801]
[1733247410132,0.00811126,95226.0,95225.0,0.08350934]
[1733247410732,0.0158,95231.0,95230.0,0.052485]
[1733247410930,0.0158,95238.0,95237.0,0.052482]
[1733247411133,0.0026,95251.0,95249.0,0.052475]
[1733247411338,0.3608,95255.0,95250.0,0.1558]
[1733247411535,0.3608,95255.0,95254.0,0.052472]
[1733247411831,0.36088043,95255.0,95254.0,0.052472]
[1733247412230,0.36088043,95255.0,95254.0,0.05255201]
[1733247412436,8.043e-05,95255.0,95254.0,0.05255201]
[1733247412939,8.043e-05,95255.0,95254.0,0.05355201]
[1733247413633,8.043e-05,95255.0,95254.0,0.08342223]
[1733247413838,8.043e-05,95255.0,95254.0,0.08442223]
[1733247414332,8.043e-05,95255.0,95254.0,1.58442223]
[1733247415835,8.043e-05,95255.0,95254.0,1.58542223]
[1733247416337,4.3e-07,95255.0,95254.0,1.58542223]
[1733247417039,4.3e-07,95255.0,95254.0,1.60642237]
[1733247417439,4.3e-07,95255.0,95254.0,2.00350237]
[1733247418533,0.0026,95266.0,95265.0,0.052466]
[1733247418734,0.0305,95273.0,95272.0,0.052462]
[1733247419037,0.0305,95273.0,95272.0,0.05254201]
[1733247419244,0.0026,95286.0,95284.0,0.052456]
[1733247419537,0.0318,95293.0,95284.0,0.20653601]
[1733247419538,0.03063366,95285.0,95284.0,0.20653601]
[1733247419836,0.00013366,95285.0,95284.0,0.20653601]
[1733247420039,0.0331,95298.0,95284.0,0.23752984]
[1733247420243,0.0026,95305.0,95299.0,0.052447]